[Event "*** Titled Tuesday Blitz"]
[Site "Chess.com"]
[Date "2020.12.01"]
[Round "4"]
[White "Alomaterapia"]
[Black "marciojor"]
[Result "1-0"]
[WhiteElo "2437"]
[BlackElo "2246"]
[TimeControl "180+1"]
[EndTime "10:38:13 PST"]
[Termination "Alomaterapia won by checkmate"]

1. e4 {[%clk 0:03:00.9]} 1... e6 {[%clk 0:02:59.4]} 2. d4 {[%clk 0:03:00.9]}
2... d5 {[%clk 0:03:00.1]} 3. e5 {[%clk 0:03:01.6]} 3... c5 {[%clk 0:02:59.9]}
4. c3 {[%clk 0:03:02.2]} 4... Nc6 {[%clk 0:03:00.4]} 5. Nf3 {[%clk 0:03:02.9]}
5... Qb6 {[%clk 0:03:00.3]} 6. a3 {[%clk 0:03:03.4]} 6... c4 {[%clk 0:02:58.7]}
7. Nbd2 {[%clk 0:03:01.1]} 7... Bd7 {[%clk 0:02:58.7]} 8. Rb1 {[%clk 0:03:01.2]}
8... Nge7 {[%clk 0:02:56.9]} 9. b3 {[%clk 0:02:52.6]} 9... cxb3 {[%clk
0:02:56.8]} 10. c4 {[%clk 0:02:49.9]} 10... Qc7 {[%clk 0:02:40]} 11. Qxb3 {[%clk
0:02:20.7]} 11... Na5 {[%clk 0:02:31.1]} 12. Qa2 {[%clk 0:02:12]} 12... Rc8
{[%clk 0:02:23.5]} 13. c5 {[%clk 0:02:04.4]} 13... Nec6 {[%clk 0:02:16.1]} 14.
Bd3 {[%clk 0:02:00.4]} 14... Be7 {[%clk 0:02:15.8]} 15. Nf1 {[%clk 0:01:52.7]}
15... h6 {[%clk 0:02:12.3]} 16. Ng3 {[%clk 0:01:52.6]} 16... O-O {[%clk
0:02:10.7]} 17. O-O {[%clk 0:01:51.3]} 17... f5 {[%clk 0:02:08.7]} 18. exf6
{[%clk 0:01:43.2]} 18... Bxf6 {[%clk 0:02:08.8]} 19. Be3 {[%clk 0:01:43.4]}
19... b6 {[%clk 0:01:44.1]} 20. cxb6 {[%clk 0:01:39.5]} 20... axb6 {[%clk
0:01:44.3]} 21. Rfc1 {[%clk 0:01:36]} 21... Rb8 {[%clk 0:01:38.4]} 22. Nh5
{[%clk 0:01:26.2]} 22... Be7 {[%clk 0:01:36.9]} 23. Ne5 {[%clk 0:01:20]} 23...
Qd6 {[%clk 0:01:24.4]} 24. Ng6 {[%clk 0:00:55.5]} 24... Rf7 {[%clk 0:01:17.7]}
25. Nxe7+ {[%clk 0:00:50.8]} 25... Nxe7 {[%clk 0:01:16.5]} 26. Ng3 {[%clk
0:00:45.4]} 26... b5 {[%clk 0:00:59]} 27. a4 {[%clk 0:00:33.1]} 27... bxa4
{[%clk 0:00:54.8]} 28. Rxb8+ {[%clk 0:00:28.1]} 28... Qxb8 {[%clk 0:00:55]} 29.
h4 {[%clk 0:00:18.5]} 29... Nb3 {[%clk 0:00:54.8]} 30. Re1 {[%clk 0:00:17.6]}
30... Bb5 {[%clk 0:00:50.7]} 31. Bb1 {[%clk 0:00:17.5]} 31... Nc6 {[%clk
0:00:43.7]} 32. Qc2 {[%clk 0:00:17.1]} 32... Qd6 {[%clk 0:00:33.3]} 33. Qh7+
{[%clk 0:00:16.5]} 33... Kf8 {[%clk 0:00:33.7]} 34. Bg6 {[%clk 0:00:16.1]} 34...
a3 {[%clk 0:00:26.2]} 35. Nh5 {[%clk 0:00:15]} 35... Qe7 {[%clk 0:00:25.7]} 36.
Qh8# {[%clk 0:00:15.1]} 1-0

[Event "*** Titled Tuesday Blitz"]
[Site "Chess.com"]
[Date "2020.12.01"]
[Round "4"]
[White "Khnykin_Nikolay"]
[Black "Cambek64"]
[Result "0-1"]
[WhiteElo "2032"]
[BlackElo "2264"]
[TimeControl "180+1"]
[EndTime "10:38:13 PST"]
[Termination "Cambek64 won on time"]

1. e4 {[%clk 0:02:58.4]} 1... c5 {[%clk 0:02:59.1]} 2. d4 {[%clk 0:02:54]} 2...
cxd4 {[%clk 0:02:58.2]} 3. c3 {[%clk 0:02:53.6]} 3... dxc3 {[%clk 0:02:57.6]} 4.
Nxc3 {[%clk 0:02:54.5]} 4... Nc6 {[%clk 0:02:57.4]} 5. Bc4 {[%clk 0:02:54.3]}
5... e6 {[%clk 0:02:57.7]} 6. Nf3 {[%clk 0:02:54.3]} 6... Nf6 {[%clk 0:02:57.9]}
7. O-O {[%clk 0:02:53.8]} 7... Qc7 {[%clk 0:02:57.9]} 8. Re1 {[%clk 0:02:51.6]}
8... d6 {[%clk 0:02:44.6]} 9. Bb3 {[%clk 0:02:50.8]} 9... a6 {[%clk 0:02:43.1]}
10. Bf4 {[%clk 0:02:48.9]} 10... Be7 {[%clk 0:02:36.2]} 11. e5 {[%clk
0:02:48.4]} 11... dxe5 {[%clk 0:02:36.1]} 12. Nxe5 {[%clk 0:02:48.1]} 12... Nxe5
{[%clk 0:02:36.3]} 13. Bxe5 {[%clk 0:02:47.8]} 13... Qa5 {[%clk 0:02:36.4]} 14.
Qf3 {[%clk 0:02:38.5]} 14... O-O {[%clk 0:02:35]} 15. Bc2 {[%clk 0:02:27.3]}
15... Rd8 {[%clk 0:02:10.7]} 16. Rad1 {[%clk 0:02:23]} 16... Qb6 {[%clk
0:01:57.4]} 17. Rxd8+ {[%clk 0:01:51.9]} 17... Qxd8 {[%clk 0:01:51.4]} 18. Rd1
{[%clk 0:01:48.4]} 18... Qf8 {[%clk 0:01:47.1]} 19. Qd3 {[%clk 0:01:44.1]} 19...
g6 {[%clk 0:01:44.6]} 20. Ne4 {[%clk 0:01:37.3]} 20... Nd5 {[%clk 0:01:05.2]}
21. Qh3 {[%clk 0:01:14.4]} 21... f5 {[%clk 0:01:01.4]} 22. Nc3 {[%clk
0:00:52.5]} 22... Bf6 {[%clk 0:01:00.4]} 23. Nxd5 {[%clk 0:00:20.2]} 23... Bxe5
{[%clk 0:00:58.6]} 24. Nb6 {[%clk 0:00:20]} 24... Rb8 {[%clk 0:00:58.1]} 25. Qh4
{[%clk 0:00:16.9]} 25... Bf6 {[%clk 0:00:53.1]} 26. Qf4 {[%clk 0:00:15.3]} 26...
e5 {[%clk 0:00:52.4]} 27. Qc4+ {[%clk 0:00:14.5]} 27... Qf7 {[%clk 0:00:47.3]}
28. Qc5 {[%clk 0:00:10.3]} 28... Be6 {[%clk 0:00:44.4]} 29. h3 {[%clk
0:00:07.4]} 29... e4 {[%clk 0:00:43.6]} 30. Bb3 {[%clk 0:00:06.1]} 30... Bxb3
{[%clk 0:00:42.2]} 31. Rd7 {[%clk 0:00:05]} 31... Qe6 {[%clk 0:00:34.8]} 32.
axb3 {[%clk 0:00:03.5]} 32... Rd8 {[%clk 0:00:29.6]} 0-1

[Event "*** Titled Tuesday Blitz"]
[Site "Chess.com"]
[Date "2020.12.01"]
[Round "4"]
[White "Valeron76"]
[Black "RD4ever"]
[Result "1-0"]
[WhiteElo "2548"]
[BlackElo "2827"]
[TimeControl "180+1"]
[EndTime "10:38:14 PST"]
[Termination "Valeron76 won by resignation"]

1. e4 {[%clk 0:03:00.9]} 1... e6 {[%clk 0:02:58.8]} 2. d3 {[%clk 0:03:00.1]}
2... c5 {[%clk 0:02:58.7]} 3. Be2 {[%clk 0:02:59.5]} 3... Nc6 {[%clk 0:02:59.6]}
4. f4 {[%clk 0:02:59.4]} 4... g6 {[%clk 0:02:48]} 5. Nf3 {[%clk 0:02:58.6]} 5...
Bg7 {[%clk 0:02:48.9]} 6. O-O {[%clk 0:02:57.4]} 6... d6 {[%clk 0:02:48.9]} 7.
c3 {[%clk 0:02:55.1]} 7... Nge7 {[%clk 0:02:48.9]} 8. Be3 {[%clk 0:02:51.1]}
8... O-O {[%clk 0:02:48.7]} 9. Nbd2 {[%clk 0:02:51.4]} 9... b5 {[%clk
0:02:35.9]} 10. a3 {[%clk 0:02:46.6]} 10... Bb7 {[%clk 0:02:18.5]} 11. Rc1
{[%clk 0:02:35.3]} 11... Qd7 {[%clk 0:02:15.5]} 12. d4 {[%clk 0:02:32.6]} 12...
cxd4 {[%clk 0:02:15.1]} 13. cxd4 {[%clk 0:02:29.2]} 13... a6 {[%clk 0:02:15.1]}
14. Nb3 {[%clk 0:02:25.1]} 14... Rac8 {[%clk 0:02:02.6]} 15. Qd2 {[%clk
0:02:17.5]} 15... Rfd8 {[%clk 0:01:55.3]} 16. Bd3 {[%clk 0:02:14.3]} 16... f5
{[%clk 0:01:40.7]} 17. e5 {[%clk 0:02:13.4]} 17... Nd5 {[%clk 0:01:41]} 18. Bf2
{[%clk 0:02:09.5]} 18... Ba8 {[%clk 0:01:21.5]} 19. Bh4 {[%clk 0:02:06.2]} 19...
Nce7 {[%clk 0:01:17.8]} 20. h3 {[%clk 0:02:00.8]} 20... Rxc1 {[%clk 0:01:14.1]}
21. Rxc1 {[%clk 0:01:57.8]} 21... Rc8 {[%clk 0:01:15]} 22. Rxc8+ {[%clk
0:01:54.3]} 22... Nxc8 {[%clk 0:01:15.9]} 23. exd6 {[%clk 0:01:50.5]} 23... Qxd6
{[%clk 0:01:10.4]} 24. Ne5 {[%clk 0:01:47.9]} 24... Ndb6 {[%clk 0:00:56.3]} 25.
Qc3 {[%clk 0:01:41.6]} 25... Ne7 {[%clk 0:00:46.6]} 26. Qc5 {[%clk 0:01:37.8]}
26... Nec8 {[%clk 0:00:44.8]} 27. Qxd6 {[%clk 0:01:34.1]} 27... Nxd6 {[%clk
0:00:44.9]} 28. Nc5 {[%clk 0:01:31.2]} 28... Ndc4 {[%clk 0:00:36.7]} 29. Nxa6
{[%clk 0:01:25.5]} 29... Be4 {[%clk 0:00:27.6]} 30. Nc5 {[%clk 0:01:25.3]} 30...
Bxd3 {[%clk 0:00:25.5]} 31. Ncxd3 {[%clk 0:01:20.3]} 31... Nd5 {[%clk
0:00:26.1]} 32. Kf2 {[%clk 0:01:14.6]} 32... Bh6 {[%clk 0:00:26.2]} 33. g3
{[%clk 0:01:12.1]} 33... Bf8 {[%clk 0:00:25.9]} 34. Ke2 {[%clk 0:01:08.8]} 34...
Bd6 {[%clk 0:00:24.7]} 35. Nxc4 {[%clk 0:01:05.8]} 35... bxc4 {[%clk 0:00:24.6]}
36. Ne5 {[%clk 0:00:56]} 36... c3 {[%clk 0:00:25]} 37. bxc3 {[%clk 0:00:47.9]}
37... Nxc3+ {[%clk 0:00:22.9]} 38. Kd3 {[%clk 0:00:48.2]} 38... Ne4 {[%clk
0:00:21.2]} 39. a4 {[%clk 0:00:46.4]} 39... Nf2+ {[%clk 0:00:20.8]} 40. Kc4
{[%clk 0:00:45.5]} 40... Nxh3 {[%clk 0:00:21.2]} 41. a5 {[%clk 0:00:45.5]} 41...
Bc7 {[%clk 0:00:21.3]} 42. a6 {[%clk 0:00:44.9]} 42... Bb6 {[%clk 0:00:21.3]}
43. Be7 {[%clk 0:00:43.6]} 43... g5 {[%clk 0:00:16.8]} 44. Bc5 {[%clk
0:00:43.2]} 1-0

[Event "*** Titled Tuesday Blitz"]
[Site "Chess.com"]
[Date "2020.12.01"]
[Round "4"]
[White "lelya96"]
[Black "ShahMatKanal"]
[Result "0-1"]
[WhiteElo "2220"]
[BlackElo "2495"]
[TimeControl "180+1"]
[EndTime "10:38:14 PST"]
[Termination "ShahMatKanal won by checkmate"]

1. e4 {[%clk 0:03:00.9]} 1... c6 {[%clk 0:02:59.3]} 2. d4 {[%clk 0:03:00.3]}
2... d5 {[%clk 0:02:59.7]} 3. exd5 {[%clk 0:03:00.9]} 3... cxd5 {[%clk
0:03:00.6]} 4. Bd3 {[%clk 0:03:01.2]} 4... Qc7 {[%clk 0:03:00]} 5. c3 {[%clk
0:03:00.7]} 5... Nf6 {[%clk 0:02:57.5]} 6. h3 {[%clk 0:02:59]} 6... Nc6 {[%clk
0:02:55.2]} 7. Nf3 {[%clk 0:02:58.5]} 7... g6 {[%clk 0:02:54.7]} 8. O-O {[%clk
0:02:57]} 8... Bg7 {[%clk 0:02:55]} 9. Re1 {[%clk 0:02:55.8]} 9... O-O {[%clk
0:02:53.3]} 10. Na3 {[%clk 0:02:55]} 10... a6 {[%clk 0:02:49.7]} 11. Nc2 {[%clk
0:02:52]} 11... Bf5 {[%clk 0:02:48.4]} 12. Be3 {[%clk 0:02:44.1]} 12... b5
{[%clk 0:02:42.6]} 13. Qd2 {[%clk 0:02:43.6]} 13... Bxd3 {[%clk 0:02:39.9]} 14.
Qxd3 {[%clk 0:02:43.9]} 14... Ne4 {[%clk 0:02:39.3]} 15. Nd2 {[%clk 0:02:32.8]}
15... f5 {[%clk 0:02:31.1]} 16. Nxe4 {[%clk 0:02:23.5]} 16... fxe4 {[%clk
0:02:29.1]} 17. Qd2 {[%clk 0:02:22.5]} 17... Na5 {[%clk 0:02:26.3]} 18. Nb4
{[%clk 0:01:59.9]} 18... e6 {[%clk 0:02:22]} 19. b3 {[%clk 0:01:56.9]} 19... Nc6
{[%clk 0:02:04.3]} 20. Nxc6 {[%clk 0:01:52.6]} 20... Qxc6 {[%clk 0:02:05.2]} 21.
Rac1 {[%clk 0:01:52]} 21... a5 {[%clk 0:01:59]} 22. Bh6 {[%clk 0:01:46.1]} 22...
a4 {[%clk 0:01:53.4]} 23. Bxg7 {[%clk 0:01:42.7]} 23... Kxg7 {[%clk 0:01:54.3]}
24. b4 {[%clk 0:01:38.5]} 24... Rf5 {[%clk 0:01:46.3]} 25. Rc2 {[%clk
0:01:26.2]} 25... Raf8 {[%clk 0:01:45.3]} 26. Qe3 {[%clk 0:01:24.8]} 26... R8f6
{[%clk 0:01:35.2]} 27. Qg3 {[%clk 0:01:20.4]} 27... Rf4 {[%clk 0:01:27.5]} 28.
Qg5 {[%clk 0:01:07.1]} 28... Qd6 {[%clk 0:01:22.1]} 29. a3 {[%clk 0:00:59.1]}
29... h6 {[%clk 0:01:16.7]} 30. Qg3 {[%clk 0:00:58.6]} 30... g5 {[%clk
0:01:13.8]} 31. Ree2 {[%clk 0:00:48.7]} 31... Kg6 {[%clk 0:01:10.5]} 32. Kf1
{[%clk 0:00:47.8]} 32... Rxf2+ {[%clk 0:01:00.5]} 33. Qxf2 {[%clk 0:00:41.8]}
33... Rxf2+ {[%clk 0:01:00.5]} 34. Rxf2 {[%clk 0:00:42.7]} 34... Qh2 {[%clk
0:00:45.3]} 35. Ke2 {[%clk 0:00:37.8]} 35... Qg1 {[%clk 0:00:42.3]} 36. Ke3
{[%clk 0:00:28.7]} 36... Qe1+ {[%clk 0:00:34.5]} 37. Rfe2 {[%clk 0:00:27]} 37...
Qa1 {[%clk 0:00:27.2]} 38. Ra2 {[%clk 0:00:25.7]} 38... Qxc3+ {[%clk 0:00:26.7]}
39. Kf2 {[%clk 0:00:25.5]} 39... Qxd4+ {[%clk 0:00:26.7]} 40. Kg3 {[%clk
0:00:25.9]} 40... e3 {[%clk 0:00:24.3]} 41. Rac2 {[%clk 0:00:25]} 41... Qf4#
{[%clk 0:00:24.5]} 0-1

[Event "*** Titled Tuesday Blitz"]
[Site "Chess.com"]
[Date "2020.12.01"]
[Round "4"]
[White "Sam_ChessMood"]
[Black "azikom"]
[Result "1-0"]
[WhiteElo "2832"]
[BlackElo "2626"]
[TimeControl "180+1"]
[EndTime "10:38:16 PST"]
[Termination "Sam_ChessMood won on time"]

1. d4 {[%clk 0:03:00.9]} 1... d5 {[%clk 0:02:58]} 2. c4 {[%clk 0:03:00.8]} 2...
c6 {[%clk 0:02:58.3]} 3. Nf3 {[%clk 0:02:59.5]} 3... Nf6 {[%clk 0:02:58.1]} 4.
Nc3 {[%clk 0:02:59.2]} 4... dxc4 {[%clk 0:02:58.2]} 5. a4 {[%clk 0:02:58.8]}
5... Bf5 {[%clk 0:02:57.6]} 6. Ne5 {[%clk 0:02:58.6]} 6... e6 {[%clk 0:02:53]}
7. Bg5 {[%clk 0:02:42.9]} 7... h6 {[%clk 0:02:50]} 8. Bxf6 {[%clk 0:02:38.5]}
8... Qxf6 {[%clk 0:02:49.6]} 9. e4 {[%clk 0:02:31.9]} 9... Bh7 {[%clk
0:02:49.1]} 10. Bxc4 {[%clk 0:02:31.7]} 10... Bb4 {[%clk 0:02:42.7]} 11. O-O
{[%clk 0:02:26.2]} 11... O-O {[%clk 0:02:42]} 12. Qb3 {[%clk 0:02:10.9]} 12...
a5 {[%clk 0:02:39.3]} 13. Na2 {[%clk 0:02:09.3]} 13... Qe7 {[%clk 0:02:16.7]}
14. Nxb4 {[%clk 0:02:05.8]} 14... axb4 {[%clk 0:02:13.4]} 15. Rfe1 {[%clk
0:01:52.3]} 15... Rd8 {[%clk 0:02:12.3]} 16. d5 {[%clk 0:01:45]} 16... Qd6
{[%clk 0:01:02.3]} 17. Nxf7 {[%clk 0:01:05]} 17... Kxf7 {[%clk 0:00:58.5]} 18.
e5 {[%clk 0:00:54]} 18... Qe7 {[%clk 0:00:54.8]} 19. d6 {[%clk 0:00:35.7]} 19...
Qd7 {[%clk 0:00:52.9]} 20. f4 {[%clk 0:00:35.9]} 20... Bf5 {[%clk 0:00:45.6]}
21. h3 {[%clk 0:00:28.9]} 21... h5 {[%clk 0:00:44.3]} 22. Qf3 {[%clk 0:00:28.4]}
22... b5 {[%clk 0:00:43.2]} 23. axb5 {[%clk 0:00:18.3]} 23... Rxa1 {[%clk
0:00:41.6]} 24. Rxa1 {[%clk 0:00:19.2]} 24... cxb5 {[%clk 0:00:41.8]} 25. Bb3
{[%clk 0:00:16.4]} 25... Bg6 {[%clk 0:00:40.6]} 26. f5 {[%clk 0:00:15.7]} 1-0

[Event "*** Titled Tuesday Blitz"]
[Site "Chess.com"]
[Date "2020.12.01"]
[Round "4"]
[White "venus02"]
[Black "vanea_03"]
[Result "0-1"]
[WhiteElo "2499"]
[BlackElo "2727"]
[TimeControl "180+1"]
[EndTime "10:38:18 PST"]
[Termination "vanea_03 won by resignation"]

1. e4 {[%clk 0:03:00.1]} 1... e5 {[%clk 0:02:59.7]} 2. Nf3 {[%clk 0:02:59.7]}
2... Nc6 {[%clk 0:03:00.3]} 3. Bb5 {[%clk 0:02:59.7]} 3... a6 {[%clk 0:03:00.6]}
4. Ba4 {[%clk 0:02:59.9]} 4... Nf6 {[%clk 0:03:00]} 5. O-O {[%clk 0:02:59.9]}
5... Bc5 {[%clk 0:03:00.2]} 6. c3 {[%clk 0:02:48.9]} 6... b5 {[%clk 0:03:00.1]}
7. Bc2 {[%clk 0:02:37.3]} 7... d5 {[%clk 0:03:00.1]} 8. d4 {[%clk 0:02:00.9]}
8... dxe4 {[%clk 0:02:59.4]} 9. dxc5 {[%clk 0:01:41.5]} 9... Qxd1 {[%clk
0:02:51.2]} 10. Bxd1 {[%clk 0:01:41.5]} 10... exf3 {[%clk 0:02:50.8]} 11. Bxf3
{[%clk 0:01:42.4]} 11... e4 {[%clk 0:02:46.5]} 12. Be2 {[%clk 0:01:41.7]} 12...
O-O {[%clk 0:02:19.9]} 13. Bg5 {[%clk 0:01:41.1]} 13... h6 {[%clk 0:01:36.4]}
14. Bxf6 {[%clk 0:01:39.5]} 14... gxf6 {[%clk 0:01:37.3]} 15. Nd2 {[%clk
0:01:31.7]} 15... f5 {[%clk 0:01:37.5]} 16. Rfd1 {[%clk 0:01:25.4]} 16... Be6
{[%clk 0:01:34]} 17. g3 {[%clk 0:01:10.8]} 17... Rfd8 {[%clk 0:01:33.2]} 18. b3
{[%clk 0:01:09.4]} 18... Ne5 {[%clk 0:01:23.9]} 19. Nf1 {[%clk 0:01:08]} 19...
f4 {[%clk 0:01:18.9]} 20. gxf4 {[%clk 0:01:06.1]} 20... Ng6 {[%clk 0:01:17.3]}
21. f5 {[%clk 0:00:57.4]} 21... Bxf5 {[%clk 0:01:16.4]} 22. Ne3 {[%clk
0:00:57.5]} 22... Be6 {[%clk 0:01:15.2]} 23. c4 {[%clk 0:00:56.2]} 23... Nf4
{[%clk 0:01:11.2]} 24. Bf1 {[%clk 0:00:47.8]} 24... b4 {[%clk 0:01:05.4]} 25.
Rxd8+ {[%clk 0:00:38.7]} 25... Rxd8 {[%clk 0:01:06.3]} 26. Rd1 {[%clk
0:00:38.9]} 26... Rxd1 {[%clk 0:00:59.6]} 27. Nxd1 {[%clk 0:00:38.9]} 27... Kg7
{[%clk 0:00:56.8]} 28. f3 {[%clk 0:00:37]} 28... exf3 {[%clk 0:00:52]} 29. Kf2
{[%clk 0:00:36.9]} 29... Bf5 {[%clk 0:00:49.3]} 30. Kxf3 {[%clk 0:00:35.6]}
30... Ne6 {[%clk 0:00:47.6]} 31. Ne3 {[%clk 0:00:23]} 31... Bb1 {[%clk
0:00:47.9]} 32. Be2 {[%clk 0:00:15.8]} 32... Bxa2 {[%clk 0:00:37.1]} 33. Bd1
{[%clk 0:00:15.6]} 33... Nxc5 {[%clk 0:00:37.6]} 34. Nd5 {[%clk 0:00:15.2]}
34... a5 {[%clk 0:00:35.7]} 35. Nxc7 {[%clk 0:00:14.2]} 35... Bxb3 {[%clk
0:00:35.2]} 36. Bxb3 {[%clk 0:00:13.7]} 36... Nxb3 {[%clk 0:00:36.1]} 37. Nb5
{[%clk 0:00:13.5]} 37... a4 {[%clk 0:00:33.7]} 38. Ke3 {[%clk 0:00:13.3]} 38...
a3 {[%clk 0:00:33]} 0-1

[Event "*** Titled Tuesday Blitz"]
[Site "Chess.com"]
[Date "2020.12.01"]
[Round "4"]
[White "lacafi"]
[Black "Loy_Konstantin"]
[Result "1-0"]
[WhiteElo "2214"]
[BlackElo "2359"]
[TimeControl "180+1"]
[EndTime "10:38:18 PST"]
[Termination "lacafi won on time"]

1. d4 {[%clk 0:03:00.9]} 1... Nf6 {[%clk 0:02:59.3]} 2. Nf3 {[%clk 0:03:00.8]}
2... g6 {[%clk 0:02:55.9]} 3. c4 {[%clk 0:03:00.6]} 3... c5 {[%clk 0:02:56]} 4.
e3 {[%clk 0:03:00.1]} 4... Bg7 {[%clk 0:02:55.5]} 5. Be2 {[%clk 0:03:00.2]} 5...
O-O {[%clk 0:02:55.2]} 6. O-O {[%clk 0:03:00.5]} 6... cxd4 {[%clk 0:02:55.6]} 7.
exd4 {[%clk 0:03:00.2]} 7... d5 {[%clk 0:02:54.9]} 8. c5 {[%clk 0:02:51.9]} 8...
Nc6 {[%clk 0:02:54]} 9. a3 {[%clk 0:02:51.5]} 9... a5 {[%clk 0:02:52.8]} 10. Nc3
{[%clk 0:02:44]} 10... b6 {[%clk 0:02:50.6]} 11. Bg5 {[%clk 0:02:33.6]} 11...
bxc5 {[%clk 0:02:45.1]} 12. dxc5 {[%clk 0:02:34.5]} 12... d4 {[%clk 0:01:38.2]}
13. Nb5 {[%clk 0:02:26.9]} 13... e5 {[%clk 0:01:37]} 14. Nd6 {[%clk 0:01:34.2]}
14... Qc7 {[%clk 0:01:30.1]} 15. Bc4 {[%clk 0:01:28.7]} 15... Ba6 {[%clk
0:01:23.4]} 16. Qc2 {[%clk 0:01:19.1]} 16... Bxc4 {[%clk 0:01:13.4]} 17. Qxc4
{[%clk 0:01:20]} 17... h6 {[%clk 0:01:09]} 18. Bxf6 {[%clk 0:01:09.6]} 18...
Bxf6 {[%clk 0:01:07.3]} 19. b4 {[%clk 0:01:10.4]} 19... axb4 {[%clk 0:00:30.6]}
20. axb4 {[%clk 0:01:11.3]} 20... Rxa1 {[%clk 0:00:26]} 21. Rxa1 {[%clk
0:01:11.7]} 21... Be7 {[%clk 0:00:26.6]} 22. b5 {[%clk 0:00:49.2]} 22... Na5
{[%clk 0:00:22.3]} 23. Qb4 {[%clk 0:00:49.4]} 23... Nb7 {[%clk 0:00:19.6]} 24.
Nxb7 {[%clk 0:00:32.8]} 24... Qxb7 {[%clk 0:00:19.9]} 25. Nxe5 {[%clk
0:00:33.4]} 25... Ra8 {[%clk 0:00:13.9]} 26. Re1 {[%clk 0:00:27]} 26... Rb8
{[%clk 0:00:08.6]} 27. Qc4 {[%clk 0:00:19.2]} 27... Bf8 {[%clk 0:00:08.3]} 28.
b6 {[%clk 0:00:13.7]} 28... Qc8 {[%clk 0:00:07]} 29. Qxf7+ {[%clk 0:00:11.1]}
1-0

[Event "*** Titled Tuesday Blitz"]
[Site "Chess.com"]
[Date "2020.12.01"]
[Round "4"]
[White "MashaFromRussia"]
[Black "Srisshhhtea"]
[Result "0-1"]
[WhiteElo "2420"]
[BlackElo "2264"]
[TimeControl "180+1"]
[EndTime "10:38:19 PST"]
[Termination "Srisshhhtea won by resignation"]

1. d4 {[%clk 0:02:54.2]} 1... d5 {[%clk 0:02:59.2]} 2. c4 {[%clk 0:02:50.8]}
2... e6 {[%clk 0:02:57.5]} 3. Nf3 {[%clk 0:02:51.4]} 3... Be7 {[%clk 0:02:56.1]}
4. g3 {[%clk 0:02:49.6]} 4... Nf6 {[%clk 0:02:54.4]} 5. Bg2 {[%clk 0:02:50.5]}
5... O-O {[%clk 0:02:52.7]} 6. O-O {[%clk 0:02:51.4]} 6... dxc4 {[%clk
0:02:51.4]} 7. Ne5 {[%clk 0:02:51.4]} 7... Nc6 {[%clk 0:02:49.8]} 8. Nxc6 {[%clk
0:02:51.6]} 8... bxc6 {[%clk 0:02:49.2]} 9. e3 {[%clk 0:02:52.5]} 9... Rb8
{[%clk 0:02:45.1]} 10. Qa4 {[%clk 0:02:51.6]} 10... c5 {[%clk 0:02:41.9]} 11.
Rd1 {[%clk 0:02:48.9]} 11... Bd7 {[%clk 0:02:35.7]} 12. Qxc4 {[%clk 0:02:47.2]}
12... Bb5 {[%clk 0:02:31.8]} 13. Qc2 {[%clk 0:02:43.1]} 13... c4 {[%clk
0:02:20.9]} 14. Nc3 {[%clk 0:02:41.3]} 14... Ba6 {[%clk 0:02:17.6]} 15. e4
{[%clk 0:02:40.2]} 15... h6 {[%clk 0:02:11.3]} 16. h3 {[%clk 0:02:39.3]} 16...
Bb4 {[%clk 0:02:04.7]} 17. Be3 {[%clk 0:02:38.6]} 17... Qe7 {[%clk 0:02:03]} 18.
Qa4 {[%clk 0:02:37.1]} 18... Bb7 {[%clk 0:01:52.1]} 19. d5 {[%clk 0:02:15.1]}
19... Bxc3 {[%clk 0:01:48.2]} 20. bxc3 {[%clk 0:02:12.1]} 20... exd5 {[%clk
0:01:48.3]} 21. exd5 {[%clk 0:02:13]} 21... Ne4 {[%clk 0:01:29.5]} 22. Qxc4
{[%clk 0:02:07.9]} 22... Nxg3 {[%clk 0:01:22]} 23. Bc5 {[%clk 0:01:55.4]} 23...
Qe2 {[%clk 0:01:21.2]} 24. Qxe2 {[%clk 0:01:50.3]} 24... Nxe2+ {[%clk
0:01:22.1]} 25. Kf1 {[%clk 0:01:50.1]} 25... Nxc3 {[%clk 0:01:21.4]} 26. Bxf8
{[%clk 0:00:27.9]} 26... Nxd1 {[%clk 0:01:18.3]} 27. Ba3 {[%clk 0:00:17.3]}
27... Nc3 {[%clk 0:01:14.3]} 28. Rc1 {[%clk 0:00:17.6]} 28... Nxd5 {[%clk
0:01:03]} 29. Bxd5 {[%clk 0:00:15]} 29... Bxd5 {[%clk 0:01:02.4]} 30. Rxc7
{[%clk 0:00:15.9]} 30... a6 {[%clk 0:00:55]} 31. Ke2 {[%clk 0:00:07.9]} 31...
Bxa2 {[%clk 0:00:53.9]} 32. Bd6 {[%clk 0:00:06.9]} 32... Re8+ {[%clk 0:00:47.4]}
33. Kf3 {[%clk 0:00:05.7]} 33... Bd5+ {[%clk 0:00:45.3]} 34. Kg3 {[%clk
0:00:06.2]} 34... Re6 {[%clk 0:00:43.3]} 35. Bf4 {[%clk 0:00:05]} 35... Rg6+
{[%clk 0:00:42.3]} 36. Kh4 {[%clk 0:00:05.5]} 36... Rg2 {[%clk 0:00:40.5]} 37.
Bg3 {[%clk 0:00:04.6]} 37... Bf3 {[%clk 0:00:37.5]} 0-1